Cogmind - Beta 16 @@@ ROGUE MODE // 2025.12.05 @ 19:10:15 Player: beans Result: Destroyed by Y-54 Guardian with Flak Gun Performance ------------- Evolutions (3) 1500 Regions Visited (7) 1400 Robots Destroyed (115) 575 Value Destroyed (3300) 3300 Prototype IDs (27) 540 Alien Tech Used (0) 0 Bonus (770) 770 TOTAL SCORE: 8085 Bonus ------- High Alert Combat Kills 270 Entered Garrisons 200 Aligned with FarCom 300 Cogmind --------- Core Integrity 0/700 Matter 151/300 Energy 98/100 System Corruption 6% Temperature Cool (6) Movement Core (50) Location -7/Garrison Parts ------- > --- POWER (1) -------- (None) > --- PROPULSION (3) --- (None) > --- UTILITY (6) ------ Advanced Visual Processing Unit Weapon Cycler Hacking Suite Hacking Suite > --- WEAPON (3) ------- (None) > --- INVENTORY (5) ---- AWS/Gauss Peak State ------------ > --- POWER ------------ Micro Nuclear Core > --- PROPULSION ------- Aerolev Unit Gravmag System > --- UTILITY ---------- Improved Heat Sink Improved Cooling System Advanced Visual Processing Unit Weapon Cycler Hacking Suite Hacking Suite > --- WEAPON ----------- Heavy Assault Rifle AWS/Gauss > --- INVENTORY -------- Heavy Particle Gun Minigun Plasma Flamer [Rating: 51] Favorites ----------- Power Ion Engine Engine Ion Engine Power Core Micro Nuclear Core Reactor Cold Fusion Reactor Propulsion Light Treads Treads Light Treads Leg Aluminum Leg Hover Unit Aerolev Unit Utility Small Storage Unit Device Improved Heat Sink Storage Small Storage Unit Processor Advanced Visual Processing Unit Hackware Hacking Suite Weapon Heavy Particle Gun Energy Gun Heavy Particle Gun Ballistic Gun Heavy Assault Rifle Launcher Rocket Launcher Special Weapon Plasma Flamer Build | -11 -10 -10 -10 -9 -8 -7 -7 ------- Run | Yrd Mat Min Exi Min Mat Fac Gar Slots Evolved 6 | . . . . . 4 2 . Power . | . . . . . . . . Propulsion 1 | . . . . . . 1 . Utility 4 | . . . . . 3 1 . Weapon 1 | . . . . . 1 . . Parts Attached 49 | 5 . 2 . 3 16 23 . Power 9 | 1 . . . . 4 4 . Engine 5 | 1 . . . . 2 2 . Core 3 | . . . . . 2 1 . Reactor 1 | . . . . . . 1 . Propulsion 11 | 2 . . . . 2 7 . Treads 6 | 2 . . . . 2 2 . Leg 2 | . . . . . . 2 . Wheel . | . . . . . . . . Hover 3 | . . . . . . 3 . Flight . | . . . . . . . . Utility 11 | 1 . . . . 4 6 . Device 7 | . . . . . 3 4 . Storage 1 | 1 . . . . . . . Processor 1 | . . . . . 1 . . Hackware 2 | . . . . . . 2 . Protection . | . . . . . . . . Artifact . | . . . . . . . . Weapon 18 | 1 . 2 . 3 6 6 . Energy Gun 5 | . . . . . 3 2 . Energy Cannon . | . . . . . . . . Ballistic Gun 8 | 1 . . . 3 2 2 . Ballistic Cannon . | . . . . . . . . Launcher 3 | . . 1 . . 1 1 . Special Weapon 2 | . . 1 . . . 1 . Impact Weapon . | . . . . . . . . Slashing Weapon . | . . . . . . . . Piercing Weapon . | . . . . . . . . Special Melee Weapon . | . . . . . . . . Unidentified Prototypes 4 | . . . . . 2 2 . Parts Lost 24 | . . . . . 3 18 3 Power 3 | . . . . . 1 1 1 Propulsion 7 | . . . . . 1 6 . Utility 5 | . . . . . 1 3 1 Weapon 9 | . . . . . . 8 1 Highest Loss Streak 6 | . . . . . 2 6 3 To Critical Strikes . | . . . . . . . . Average Backups 4 | . . . 1 4 5 5 1 Power . | . . . . . . . . Propulsion . | . . . . . . . . Utility . | . . . . . . . . Weapon 3 | . . . 1 4 5 4 1 Tool/Special . | . . . . . . . . Unused Backups 1 | . . . . . . 1 . Power . | . . . . . . . . Propulsion . | . . . . . . . . Utility 1 | . . . . . . 1 . Weapon . | . . . . . . . . Tool/Special . | . . . . . . . . Average Slot Usage (%) 68 | . 71 79 81 73 64 68 33 Engine 5 | . 14 14 14 14 5 . . Core 3 | . . . . . 3 5 . Treads 12 | . 28 28 28 28 16 3 . Hover 2 | . . . . . . 4 . Device 10 | . . . . . 4 17 9 Storage 6 | . 14 14 14 14 9 2 . Processor 3 | . . . . . . 7 7 Hackware 4 | . . . . . . 7 15 Energy Gun 4 | . . . . . 5 7 . Ballistic Gun 11 | . 14 14 14 16 19 6 . Launcher 1 | . . 2 . . . 1 . Special Weapon 1 | . . 6 10 . . . 1 Peak Build Rating 51 | 5 5 10 11 21 28 51 29 Average Rating 23 | 3 5 7 9 17 18 32 16 On Entrance 10 | . 5 5 10 7 9 28 19 Avg Prop Armor Cover (%) . | . . . . . . . . Naked Turns . | . . . . . . . . Heaviest Build 27 | 12 12 15 15 20 23 27 6 Greatest Support 42 | 40 40 40 40 40 42 40 3 Greatest Overweight (x) 8 | . . . . . 1 8 1 Average Overweight (x) . | . . . . . . 1 . Largest Inventory Capacity 8 | 8 8 8 8 8 8 8 5 Average Capacity 6 | 7 8 8 8 8 8 6 5 Most Carried 8 | 3 1 1 4 6 8 8 4 Average Carried 4 | . . . 2 4 6 5 2 Final Capacity 8 | 8 8 8 8 8 8 5 5 Final Carried 8 | . 1 1 4 6 8 4 2 Class Distribution -------------------- 39% | Skirmisher 31% | Mutant 16% | Hacker-Mutant 7% | Scavenger-Skirmisher 4% | Scavenger-Mutant Dominant Class ---------------- Mutant | -10/Materials Mutant | -10/Mines Mutant | -10/Exiles Mutant | -9/Mines Skirmisher | -8/Materials Skirmisher | -7/Factory Hacker-Mutant | -7/Garrison Resources | -11 -10 -10 -10 -9 -8 -7 -7 ----------- Run | Yrd Mat Min Exi Min Mat Fac Gar Matter Collected 2158 | 220 24 12 . 136 898 849 19 Remotely . | . . . . . . . . Salvage Created 3659 | . 55 10 . 106 1605 1864 19 Parts 228 | . 7 1 . 9 106 105 . Haulers Intercepted 6 | . . . . . 3 3 . Recyclers Shooed 6 | . . . . . 1 5 . Parts Field Recycled . | . . . . . . . . Retrieved Matter . | . . . . . . . . Parts Self-Destructed . | . . . . . . . . Prevented . | . . . . . . . . Parts Restored . | . . . . . . . . Kills | -11 -10 -10 -10 -9 -8 -7 -7 ------- Run | Yrd Mat Min Exi Min Mat Fac Gar Combat Hostiles Destroyed 76 | . 1 1 . 7 35 31 1 Guns 48 | . 1 . . 7 24 16 . Cannons 1 | . . . . . . . 1 AOE 24 | . . 1 . . 10 13 . Classes Destroyed 16 | . 2 1 . 1 8 4 . Worker 11 | . . . . . 4 7 . Builder 6 | . 1 . . . 1 4 . Tunneler 2 | . . 1 . . . 1 . Hauler 6 | . . . . . 3 3 . Recycler 8 | . . . . . 2 6 . Mechanic 2 | . . . . . . 2 . Operator 2 | . . . . . 1 1 . Watcher 2 | . . . . . 1 1 . Swarmer 22 | . . . . 7 12 3 . Grunt 33 | . 1 1 . . 13 17 1 Brawler 1 | . . . . . 1 . . Duelist 3 | . . . . . 2 1 . Sentry 9 | . . . . . 7 2 . Specialist 1 | . . . . . . 1 . Hunter 2 | . . . . . . 2 . Programmer 5 | . . . . . . 5 . Best Kill Streak 19 | . 1 2 . 4 15 19 1 Combat Bots Only 11 | . 1 1 . 4 11 6 1 Max Kills in Single Turn 5 | . 1 1 . 1 5 5 1 Gunslinging . | . . . . . . . . Exploded 4 | . . 1 . . 4 3 . Melee . | . . . . . . . . Uniques/NPCs Destroyed . | . . . . . . . . Combat | -11 -10 -10 -10 -9 -8 -7 -7 -------- Run | Yrd Mat Min Exi Min Mat Fac Gar Hostile Shots Fired 389 | . 5 19 . 20 123 172 50 Missed 138 | . 3 6 . 4 41 66 18 Hits 251 | . 2 13 . 16 82 106 32 Melee 5 | . . . . . 2 3 . Projectile 246 | . 2 13 . 16 80 103 32 Critical Strikes 7 | . . 1 . . 1 3 2 Damage Taken 3727 | . 24 172 . 132 1189 1768 442 Core 974 | . 12 25 . 29 208 367 333 Absorbed by Shields . | . . . . . . . . Core Remaining (%) 78 | 100 . . . 73 62 . . Volleys Fired 218 | . 7 14 . 1 92 99 5 Largest 3 | . 1 2 . 2 3 3 1 Hottest 135 | . 20 120 . 43 135 135 100 Shots Fired 493 | . 7 20 . 21 247 193 5 Gun 442 | . 7 7 . 21 239 168 . Cannon . | . . . . . . . . Launcher 32 | . . 5 . . 8 19 . Special 19 | . . 8 . . . 6 5 Kinetic 328 | . 7 7 . 21 195 98 . Thermal 109 | . . 8 . . 44 52 5 Explosive 32 | . . 5 . . 8 19 . Electromagnetic 24 | . . . . . . 24 . Robot Hit Streak 15 | . 2 13 . 7 9 14 15 Robot Miss Streak 5 | . 2 2 . 4 5 5 . Penetration Max 1 | . . . . 1 . . . Secondary Targets 8 | . . . . . 6 2 . Max Gunslinging Chain 1 | . . . . . 1 1 . Autonomous 53 | . . . . 19 . 34 . Shots Hit Robots 303 | . 4 15 . 14 146 119 5 Core Hits 195 | . 3 4 . 7 79 98 4 Critical Kills 3 | . . . . 2 . 1 . Critical Parts Destroyed . | . . . . . . . . Critical Strikes 13 | . . . . 2 2 7 2 Burn 10 | . . . . . 2 6 2 Destroy 3 | . . . . 2 . 1 . Melee Attacks . | . . . . . . . . Impact . | . . . . . . . . Slashing . | . . . . . . . . Piercing . | . . . . . . . . Sneak Attacks . | . . . . . . . . Combat Hostiles . | . . . . . . . . Follow-up Attacks . | . . . . . . . . Damage Inflicted 9545 | . 55 392 . 417 3317 5286 78 Guns 5288 | . 55 73 . 417 2426 2317 . Cannons . | . . . . . . . . Explosions 4049 | . . 268 . . 890 2891 . Melee . | . . . . . . . . Ramming 17 | . . . . . 1 . 16 Kinetic 4137 | . 55 73 . 417 1925 1667 . Thermal 1578 | . . 51 . . 501 964 62 Explosive 3689 | . . 268 . . 890 2531 . Electromagnetic 124 | . . . . . . 124 . Impact . | . . . . . . . . Slashing . | . . . . . . . . Piercing . | . . . . . . . . Highest Corruption 6 | . . . . . . 6 6 Average Corruption 3 | . . . . . . 3 6 Corruption Purged . | . . . . . . . . Corruption Blocked . | . . . . . . . . Effects 36 | . . . . . . 31 5 Message Errors 2 | . . . . . . 1 1 Matter Fused 15 | . . . . . . 12 3 Heat Flow Errors 3 | . . . . . . 3 . Energy Discharges 3 | . . . . . . 3 . Parts Fused 1 | . . . . . . 1 . Data Loss (minor) 6 | . . . . . . 6 . Data Loss (major) 2 | . . . . . . 2 . Alerts 3 | . . . . . . 2 1 Weapon Failures 1 | . . . . . . 1 . Overload Shots . | . . . . . . . . Overflow Damage 359 | . . 12 . . 33 314 . Projectiles . | . . . . . . . . Explosions 359 | . . 12 . . 33 314 . Melee . | . . . . . . . . Knockbacks . | . . . . . . . . Impact . | . . . . . . . . Kinetic . | . . . . . . . . Secondary . | . . . . . . . . Self-Inflicted Damage 285 | . . . . . . 278 7 Shots 4 | . . . . . . 4 . Rammed 4 | . . . . . 1 . 3 Targets Rammed 4 | . . . . . 1 . 3 Kicked . | . . . . . . . . Crushed . | . . . . . . . . Highest Temperature 454 | . . 454 . 2 110 221 41 Average Temperature 66 | . . 187 . 1 23 60 21 Received Heat Transfer 1230 | . 12 117 . . 504 318 279 Effects 1 | . . 1 . . . . . Damage (minor) 1 | . . 1 . . . . . Siege Activations . | . . . . . . . . Martial Activations . | . . . . . . . . Shielding Activations . | . . . . . . . . Robots Disrupted 2 | . . 1 . . . 1 . Combat Hostiles 2 | . . 1 . . . 1 . Robots Corrupted . | . . . . . . . . Combat Hostiles . | . . . . . . . . Parts Fried . | . . . . . . . . Impact Corruptions . | . . . . . . . . Robots Melted 3 | . . . . . 1 2 . Combat Hostiles 3 | . . . . . 1 2 . Parts Melted 3 | . . . . . 1 2 . Heat Transferred 4753 | . . 320 . . 1147 2566 720 Parts Sabotaged . | . . . . . . . . Parts Stolen . | . . . . . . . . Parts Stripped . | . . . . . . . . Power Chain Reactions . | . . . . . . . . Alert | -11 -10 -10 -10 -9 -8 -7 -7 ------- Run | Yrd Mat Min Exi Min Mat Fac Gar Maximum Alert Level 3 | . . . . . 2 3 2 Low Security (%) 70 | 100 100 100 . 100 48 73 . Level 1 8 | . . . . . 4 14 . Level 2 18 | . . . . . 47 8 100 Level 3 2 | . . . . . . 3 . Level 4 . | . . . . . . . . Level 5 . | . . . . . . . . High Security . | . . . . . . . . Max Security . | . . . . . . . . Peak Influence 740 | . 20 37 . 99 665 740 577 Initial 497 | . . 3 . . . 288 497 Average 196 | . 1 7 . 42 326 186 529 Influence Increases 2607 | . 25 37 . 209 987 1239 110 Destroy 0b10 Robot/C 1520 | . 20 20 . 140 700 620 20 Destroy 0b10 Robot/NC 195 | . 5 5 . . 60 125 . Destroy Leader 306 | . . . . 20 158 128 . Trap Triggered on 0b10 10 | . . . . 10 . . . Successful Hack 8 | . . . . . . 8 . Disable Machine 255 | . . . . 15 15 225 . Destroy Structure 193 | . . 12 . 9 39 133 . Partial Spotted 15 | . . . . . 15 . . Lose Combat Pursuer 105 | . . . . 15 . . 90 Influence Decreases 2030 | . 15 47 . 209 352 1163 244 Entered New Map 568 | . . 7 . . . 347 214 Time Decay 1222 | . 15 40 . 209 322 636 . Lost Part 240 | . . . . . 30 180 30 Squads Dispatched 15 | . 1 . . . 4 10 . Investigation 1 | . . . . . . 1 . Extermination 5 | . . . . . . 5 . Reinforcement 9 | . 1 . . . 4 4 . Assault . | . . . . . . . . Garrison . | . . . . . . . . Intercept . | . . . . . . . . Searches Triggered . | . . . . . . . . Construction Impeded 2 | . . . . . 2 . . Haulers Reinforced 2 | . . . . . . 2 . Active Scanning Responses . | . . . . . . . . Cargo Convoy Interrupts 1 | . . . . . . 1 . Stealth | -11 -10 -10 -10 -9 -8 -7 -7 --------- Run | Yrd Mat Min Exi Min Mat Fac Gar Distress Signals 7 | . . . . . 4 3 . Communications Jammed . | . . . . . . . . Distress Signals . | . . . . . . . . Times Spotted 114 | . 3 3 . 8 42 45 13 Peak Tracking Total 9 | . 3 2 . 4 9 6 6 Tactical Retreats 2 | . . . . 1 . . 1 Traps | -11 -10 -10 -10 -9 -8 -7 -7 ------- Run | Yrd Mat Min Exi Min Mat Fac Gar Traps Triggered 5 | . . . . . . 3 2 Indirectly . | . . . . . . . . Trap Hack Attempts . | . . . . . . . . Triggered . | . . . . . . . . Disarmed . | . . . . . . . . Reprogrammed . | . . . . . . . . Reused 1 | . . . . 1 . . . Traps Extracted . | . . . . . . . . Installed 2 | . . . . 2 . . . Triggered 1 | . . . . 1 . . . Most Traps Carried 2 | . . . . 2 . . . Machines | -11 -10 -10 -10 -9 -8 -7 -7 ---------- Run | Yrd Mat Min Exi Min Mat Fac Gar Machines Disabled 17 | . . . . 1 1 15 . Max in Single Turn 10 | . . . . 1 1 10 . Machines Repaired . | . . . . . . . . Machines Dismantled . | . . . . . . . . Machines Sabotaged . | . . . . . . . . Overloaded Fab Kills . | . . . . . . . . Hacking | -11 -10 -10 -10 -9 -8 -7 -7 --------- Run | Yrd Mat Min Exi Min Mat Fac Gar Machines Accessed 7 | . . . 1 . . 6 . Terminals . | . . . . . . . . Fabricators 2 | . . . . . . 2 . Repair Stations . | . . . . . . . . Recycling Units 1 | . . . . . . 1 . Scanalyzers 2 | . . . . . . 2 . Garrison Access 1 | . . . . . . 1 . Total Hacks 14 | . . . 1 . . 13 . Successful 8 | . . . 1 . . 7 . Failed 6 | . . . . . . 6 . Catastrophic 1 | . . . . . . 1 . Database Lockouts . | . . . . . . . . Manual 1 | . . . 1 . . . . Terminals . | . . . . . . . . Fabricators 6 | . . . . . . 6 . Repair Stations . | . . . . . . . . Recycling Units 2 | . . . . . . 2 . Scanalyzers 4 | . . . . . . 4 . Garrison Access 1 | . . . . . . 1 . Terminal Hacks 1 | . . . 1 . . . . Proto ID Catalog 1 | . . . 1 . . . . Fabricator Hacks 2 | . . . . . . 2 . Network Status 2 | . . . . . . 2 . Repair Station Hacks . | . . . . . . . . Recycling Unit Hacks 1 | . . . . . . 1 . Process 1 | . . . . . . 1 . Scanalyzer 3 | . . . . . . 3 . Insert Component 1 | . . . . . . 1 . Retrieve Study 2 | . . . . . . 2 . Garrison Access Hacks 1 | . . . . . . 1 . Unlock Access 1 | . . . . . . 1 . Unauthorized Hacks . | . . . . . . . . Terminals . | . . . . . . . . Fabricators . | . . . . . . . . Repair Stations . | . . . . . . . . Recycling Units . | . . . . . . . . Scanalyzers . | . . . . . . . . Garrison Access . | . . . . . . . . Data Cores Recovered . | . . . . . . . . Used . | . . . . . . . . Hacking Detections 4 | . . . . . . 4 . Full Trace Events 1 | . . . . . . 1 . Feedback Events . | . . . . . . . . Feedback Blocked . | . . . . . . . . Robot Schematics Acquired . | . . . . . . . . Robots Built . | . . . . . . . . Authchips . | . . . . . . . . Time . | . . . . . . . . Total Robot Build Rating . | . . . . . . . . Part Schematics Acquired . | . . . . . . . . Parts Built . | . . . . . . . . Authchips . | . . . . . . . . Time . | . . . . . . . . Total Part Build Rating . | . . . . . . . . Part Studies Acquired 2 | . . . . . . 2 . Parts Repaired . | . . . . . . . . Time . | . . . . . . . . Parts Recycled . | . . . . . . . . Recycled Matter 271 | . . . . . . 271 . Retrieved Matter . | . . . . . . . . Retrieved Components . | . . . . . . . . Parts Scanalyzed . | . . . . . . . . Part Schematics Acquired . | . . . . . . . . Parts Damaged . | . . . . . . . . Bothacking | -11 -10 -10 -10 -9 -8 -7 -7 ------------ Run | Yrd Mat Min Exi Min Mat Fac Gar Used RIF Installer . | . . . . . . . . Robots Hacked . | . . . . . . . . Non-combat . | . . . . . . . . Combat . | . . . . . . . . Robot Hacks Applied . | . . . . . . . . Relay Couplers Released . | . . . . . . . . Fabnet Peak Effective % . | . . . . . . . . Robots Rewired . | . . . . . . . . Allies Hacked . | . . . . . . . . Hacks Repelled . | . . . . . . . . Allies | -11 -10 -10 -10 -9 -8 -7 -7 -------- Run | Yrd Mat Min Exi Min Mat Fac Gar Total Allies . | . . . . . . . . Largest Group . | . . . . . . . . Highest-Rated Group . | . . . . . . . . Highest-Rated Ally . | . . . . . . . . Total Orders . | . . . . . . . . Ally Attacks . | . . . . . . . . Total Damage . | . . . . . . . . Kills . | . . . . . . . . Allies Corrupted . | . . . . . . . . Allies Melted . | . . . . . . . . Intel | -11 -10 -10 -10 -9 -8 -7 -7 ------- Run | Yrd Mat Min Exi Min Mat Fac Gar Active Infowar (turns) 2436 | . . . . . 44 2244 148 Optics 2436 | . . . . . 44 2244 148 Terrain 2 | . . . . . . 2 . Robot Analysis Total . | . . . . . . . . Derelict Logs Recovered 1 | . . 1 . . . . . Drone Launches . | . . . . . . . . Drone Recoveries . | . . . . . . . . Exploration | -11 -10 -10 -10 -9 -8 -7 -7 ------------- Run | Yrd Mat Min Exi Min Mat Fac Gar Turns Passed 4527 | 52 148 205 357 450 923 2244 148 Spaces Moved 2418 | 34 83 95 223 248 364 1267 104 Core 258 | 10 . . . . . 144 104 Treads 1335 | 24 83 95 223 248 364 298 . Legs 106 | . . . . . . 106 . Wheels . | . . . . . . . . Hover 719 | . . . . . . 719 . Flight . | . . . . . . . . Fastest Speed 48 | 50 160 160 160 160 145 48 50 Average Speed 144 | 127 160 160 160 160 160 139 50 Slowest Speed 450 | 160 160 160 160 160 225 450 100 Overloaded Moves . | . . . . . . . . Propulsion Burnouts . | . . . . . . . . Robots Hopped . | . . . . . . . . Potential Cave-ins . | . . . . . . . . Cave-ins Triggered . | . . . . . . . . Exploration Rate (%) 34 | 3 24 35 61 65 41 35 11 Regions Visited 7 Branch Regions 3 Pre-discovered Areas 1 | . . 1 . . . . . Known Exits Taken 1 | . . . . . . 1 . Unknown Exits Taken 6 | 1 1 1 1 1 1 . . Scrap Searched 3 | . . . . 3 . . . Spaces Dug . | . . . . . . . . Terrain Destroyed 218 | . . 21 . 9 48 140 . Melee . | . . . . . . . . Projectile 28 | . . . . 9 . 19 . AOE 190 | . . 21 . . 48 121 . Terrain Rammed . | . . . . . . . . Walls Destroyed . | . . . . . . . . Machines Disabled . | . . . . . . . . Actions | -11 -10 -10 -10 -9 -8 -7 -7 --------- Run | Yrd Mat Min Exi Min Mat Fac Gar Total 3115 | 43 91 124 224 302 522 1615 194 Wait 278 | . 1 13 . 39 25 154 46 Move 2412 | 33 82 94 222 247 363 1267 104 Hop . | . . . . . . . . Pick Up 35 | 5 1 1 1 6 11 10 . Fast Attach 24 | . . . . . 4 20 . Attach 43 | 5 . 1 . 3 8 22 4 Detach 18 | . . . 1 1 2 12 2 Swap 13 | . . 1 . . 8 4 . Drop 28 | . . . . 3 8 17 . Fire 218 | . 7 14 . 1 92 99 5 Melee . | . . . . . . . . Ram 3 | . . . . . . . 3 Kick . | . . . . . . . . Crush 1 | . . . . . 1 . . Escape Stasis 40 | . . . . . . 10 30 Rewire . | . . . . . . . . Trap 2 | . . . . 2 . . . Miscellaneous . | . . . . . . . . Route ------- -11/Scrapyard -10/Materials -10/Mines -10/Exiles -9/Mines -8/Materials -7/Factory -7/Garrison History --------- Turn | Location | Event 28 | -11/Scrapyard | Discovered new exit (range 13) 53 | -11/Scrapyard | Entered Materials 166 | -10/Materials | Discovered new exit (range 12) 201 | -10/Materials | Entered Mines 207 | -10/Mines | Assembled infested the area 212 | -10/Mines | Assisted by a Guerilla fighting off Assembled 230 | -10/Mines | Learned location of Storage (-7) 299 | -10/Mines | A weapon hastily lodged in a ceiling crevice suddenly fell to the ground 324 | -10/Mines | Build established: Mutant 396 | -10/Mines | Deemed a non-threat by the Exiles lab entrance 398 | -10/Mines | Discovered new exit (range 5) 406 | -10/Mines | Entered Exiles 448 | -10/Exiles | Met 8R-AWN 472 | -10/Exiles | Met EX-HEX 523 | -10/Exiles | Met EX-BIN 552 | -10/Exiles | Aligned with FarCom system 554 | -10/Exiles | Given EX-Vault access code 592 | -10/Exiles | Opened EX-Vault 602 | -10/Exiles | Found AWS/Gauss 635 | -10/Exiles | Warned to stay clear of 0b10 Research branches 690 | -10/Exiles | Met EX-DEC 747 | -10/Exiles | Discovered new exit (range 10) 763 | -10/Exiles | Left Exiles lab with AWS/Gauss 763 | -10/Exiles | Entered Mines 964 | -9/Mines | Found a hidden stash of uninstalled traps 1164 | -9/Mines | Received a Rocket Launcher from a helpful Derelict 1190 | -9/Mines | Discovered new exit (range 9) 1213 | -9/Mines | Entered Materials 1213 | -8/Materials | Evolved 4 slots: Utility x3, Weapon x1 1593 | -8/Materials | Build established: Skirmisher 1732 | -8/Materials | Destroyed 11 combat bots 2027 | -8/Materials | Discovered new exit (range 16) 2136 | -8/Materials | Entered Factory 2136 | -7/Factory | Evolved 2 slots: Propulsion x1, Utility x1 2948 | -7/Factory | Lost 6 parts (1p3u2w) 3426 | -7/Factory | Cargo convoy interrupted 3919 | -7/Factory | Lost 3 parts (3n) 4160 | -7/Factory | Build established: Hacker-Mutant 4268 | -7/Factory | AWS/Gauss suddenly broke down 4356 | -7/Factory | Core integrity fell below 50% 4380 | -7/Factory | Identified exit to Garrison 4380 | -7/Factory | Entered Garrison 4407 | -7/Garrison | Lost 3 parts (2n1w) 4452 | -7/Garrison | Triggered checkpoint 4463 | -7/Garrison | Lost 3 parts (1p1u1w) 4505 | -7/Garrison | Core integrity fell below 20% 4528 | -7/Garrison | Destroyed by Y-54 Guardian with Flak Gun Last Messages --------------- Field strength at 82. Field strength at 76. Field strength at 70. Field strength at 64. Field strength at 58. Field strength at 52. Field strength at 46. Field strength at 40. Field strength at 34. Field strength at 28. Field strength at 22. Field strength at 16. Field strength at 10. Field strength at 4. Stasis field depleted. System corrupted: Matter fused (-7). Critical hit (Burn: +37). Slammed into G-50 Soldier. Slammed into G-47 Trooper. System corrupted: Matter fused (-8). Map ----- +----------------------------------------------------+ | ?????????????????????????????????????????????????? | | ?????????????????????????????????????????????????? | | ?????????????????????????????????????????????????? | | ?????????????????????????????????????????????????? | | ?????????????????????????????????????????????????? | | ?????????????????????????????????????????????????? | | ?????????????????????????????????????????????????? | | ?????????????????????????????????????????????????? | | ?????????????????????????????????????????????????? | | ???????????????????????####??????????????????????? | | ???????????????????????! !??????????????????????? | | ???????????????????????! !??????????????????????? | | ???????????????????????# #??????????????????????? | | ???????????????????????# #??????????????????????? | | ???????????????????????# #??????????????????????? | | ????????######?????????# #??????????????????????? | | ????????# #?????????# #??????????????????????? | | ????????# #?????????# #??????????????????????? | | ????????# #?????????# #??????????????????????? | | ????????### #?????????# #??????????????????????? | | ????##????# #?????????# #??????????????????????? | | ???? ????# +?????????# #??????????????????????? | | ???? #????# #?????????# #??????????????????????? | | #### #????# #?????????# #??????????????????????? | | # # #????# ########### ##########?????????????? | | # #+#????# Y @ #????????????? | | # #????# g #????????????? | | # #????######## ##### ######## #????????????? | | # #?????g????# #???# #??????????????????????? | | # ###??????????## #???# #??????????????????????? | | # #?????????????# #???# #??????????????????????? | | # ############### #???# #??????????????????????? | | # g g g #???# #??????????????????????? | | ######## ## ## #####???# #?????????????Y????????? | | ???????# ## ## #???????# #??????????????????????? | | ???????# !# !# !???????# #??????????????????????? | | ???????# !# !# !#??????# ??????????????????????? | | ???????# !# !# !#??????# ??????????????????????? | | ???????#########???????####??????????????????????? | | ?????????????????????????????????????????????????? | | ?????????????????????????????????????????????????? | | ?????????????????????????????????????????????????? | | ?????????????????????????????????????????????????? | | ?????????????????????????????????????????????????? | | ?????????????????????????????????????????????????? | | ?????????????????????????????????????????????????? | | ?????????????????????????????????????????????????? | | ?????????????????????????????????????????????????? | | ?????????????????????????????????????????????????? | | ?????????????????????????????????????????????????? | +----------------------------------------------------+ Best States ------------- Heat Dissipation 75 Energy Generation 17 Energy Capacity 290 Matter Stores 300 Matter Capacity 300 Sight Range 20 Terrain Scan Density 10 Weapon Cycling 15 Evasion (%) 55 Recoil Reduction 2 Matter Filtering 30 Offensive Hacking 20 Item Schematics ----------------- None Robot Schematics ------------------ None Fabricated ------------ Nothing Repaired ---------- Nothing Studied --------- Minigun | -7/Factory | Hacked Gravmag System | -7/Factory | Hacked Alien Tech Used ----------------- None Achievements -------------- None Challenges ------------ None Game ------ Seed BlastDispersalDriver Manual? 0 Play Time 00:35:47 Cumulative 221.0 hours Start 2025.11.29 @ 12:51:19 End 2025.12.05 @ 19:10:15 Sessions 8 Manual Loads 0 Difficulty Rogue Special Mode None Game No. 624 Rogue 623 Adventurer 1 Explorer 0 Win Type - Total 0 Types 0/0/0/0/0/0/0/0/0/0 Lore% 65 Gallery% 62 Achievement% 38 Wizard Run 0 Options --------- Layout 1 ASCII 0 Keyboard 0 Movement Mouse Keybinds 0 Fullscreen 1 Font 24/Smallcaps Map View 50x35 Zoom Use 21% Tactical HUD 0 Map Filters NONE Filters NONE Steam 1 RUN: e8a9eec7-c676-4a6e-be6d-1e1e0e9691d1